fUSD/lending_fUSD_20240114
["ID","MTS","AMOUNT","RATE_DAILY","PERIOD"]
[311536015,1705198209818,373.95,0.00019968,2]
[311536016,1705198210053,157.40114,0.00022089,3]
[311536020,1705198232183,-161.5,0.00022109,2]
[311536021,1705198232192,-488.91397724,0.00022112,2]
[311536022,1705198232204,-492.21325743,0.00022112,2]
[311536023,1705198232217,-4348.63612489,0.00022112,2]
[311536024,1705198232227,-3839.32915519,0.00022113,2]
[311536025,1705198232357,-17.49799505,0.00022113,2]
[311536026,1705198232367,-610.1288544,0.00022114,2]
[311536027,1705198232379,-1169.53619494,0.00022114,2]
[311536028,1705198232392,-3025.38731659,0.00022114,2]
[311536029,1705198232407,-292.42971242,0.00022114,2]
[311536030,1705198232417,-285.19932083,0.00022115,2]
[311536031,1705198232428,-524.82072606,0.00022115,2]
[311536032,1705198232437,-150.0,0.00022117,2]
[311536033,1705198232447,-373.95,0.00022232,2]
[311536034,1705198232456,-167.27963997,0.00022471,2]
[311536035,1705198232466,-140.56180251,0.00022566,2]
[311536036,1705198232483,-9.43819749,0.00022566,2]
[311536037,1705198232493,-150.0,0.00022566,2]
[311536038,1705198232502,-156.01,0.00022615,2]
[311536039,1705198232512,-240.34517603,0.00022749,2]
[311536040,1705198232523,-259.64482397,0.00022749,2]
[311536041,1705198232533,-369.50304022,0.00022749,3]
[311536042,1705198232543,-154.0,0.00022793,2]
[311536043,1705198232552,-175.42907351,0.000228,2]
[311536044,1705198232562,-175.4290735,0.00022843,2]
[311536045,1705198232572,-388.09,0.00022856,2]
[311536046,1705198232581,-175.4290735,0.00022886,2]
[311536047,1705198232590,-160.068552,0.00022886,2]
[311536048,1705198232600,-160.06855197,0.00022888,2]
[311536049,1705198232609,-160.06855197,0.0002289,2]
[311536050,1705198232618,-160.06855197,0.00022892,2]
[311536051,1705198232627,-160.06855197,0.00022894,2]
[311536052,1705198232636,-160.06855197,0.00022896,2]
[311536053,1705198232646,-413.1721,0.00022897,2]
[311536054,1705198232655,-3106.93144054,0.00022898,2]
[311536055,1705198232666,-15044.876024,0.00022898,2]
[311536056,1705198232677,-4411.54979542,0.00022899,2]
[311536057,1705198232687,-1426.47679391,0.00022899,2]
[311536058,1705198232696,-4411.54979537,0.00022899,2]
[311536059,1705198232705,-4411.54979537,0.00022899,2]
[311536060,1705198232714,-4411.54979537,0.00022899,2]
[311536061,1705198232724,-4411.54979537,0.00022899,2]
[311536062,1705198232733,-4411.54979537,0.00022899,2]
[311536063,1705198232747,-4960.6258,0.00022899,2]
[311536064,1705198232756,-1426.47679391,0.000229,2]
[311536065,1705198232765,-4411.54979537,0.000229,2]
[311536066,1705198232775,-4411.54979537,0.000229,2]
[311536067,1705198232784,-4411.54979537,0.000229,2]
[311536068,1705198232795,-4411.54979537,0.000229,2]
[311536069,1705198232805,-4411.54979537,0.000229,2]
[311536070,1705198232816,-250.0,0.000229,2]
[311536071,1705198232826,-167.27963997,0.000229,2]
[311536072,1705198232836,-4411.54979537,0.000229,2]
[311536073,1705198232848,-2457.15,0.000229,2]
[311536074,1705198232859,-322.38853601,0.000229,2]
[311536075,1705198232904,-1283.19,0.000229,2]
[311536076,1705198232916,-385.33323618,0.000229,2]
[311536086,1705198238296,-285.19932083,0.00022108,2]
[311536087,1705198238306,-160.06855197,0.00022898,2]
[311536088,1705198238315,-769.08963381,0.000229,2]
[311536089,1705198238325,-336.7955,0.000229,2]
[311536090,1705198238334,-1426.47679391,0.000229,2]
[311536091,1705198238343,-294.47450261,0.000229,6]
[311536092,1705198238352,-24357.46598582,0.000229,2]
[311536093,1705198238364,-664.88675611,0.000229,2]
[311536094,1705198238376,-273.58395634,0.000229,2]
[311536095,1705198238387,-320.02750419,0.000229,2]
[311536096,1705198238438,-43205.98186707,0.000229,2]
[311536097,1705198238447,-297.47078704,0.0002297,2]
[311536098,1705198238457,-155.0,0.00022977,2]
[311536099,1705198238466,-93838.6624024,0.00022978,2]
[311536100,1705198238475,-454897.57470316,0.0002298,2]
[311536101,1705198238484,-41627.0,0.00022986,2]
[311536102,1705198238494,-609.23408076,0.0002299,2]
[311536103,1705198238504,-155.37660646,0.00022996,2]
[311536104,1705198238513,-10075.90945184,0.00022996,2]
[311536105,1705198238522,-768.76408944,0.00022997,2]
[311536106,1705198238532,-1051.95920911,0.00022997,2]
[311536107,1705198238541,-6481.75817514,0.00022997,2]
[311536108,1705198238550,-204.68163023,0.00022997,2]
[311536109,1705198238560,-121839.77857884,0.00022997,2]
[311536110,1705198238569,-1673.83766631,0.00022998,2]
[311536111,1705198238578,-345.63771483,0.00022998,2]
[311536112,1705198238587,-857.33669562,0.00022998,2]
[311536113,1705198238596,-464356.33194632,0.00022999,2]
[311536114,1705198238607,-12289.26387543,0.00022999,2]
[311536115,1705198238616,-505265.21634996,0.00022999,2]
[311536116,1705198238627,-3293.74903118,0.00022999,2]
[311536117,1705198238636,-998.4426,0.00022999,2]
[311536118,1705198238646,-150.0,0.00022999,2]
[311536119,1705198238656,-150.0,0.00022999,2]
[311536120,1705198238666,-150.0,0.00022999,2]
[311536121,1705198238676,-150.0,0.00022999,2]
[311536122,1705198238686,-150.0,0.00022999,2]
[311536123,1705198238696,-150.0,0.00022999,2]
[311536124,1705198238706,-150.0,0.00022999,2]
[311536125,1705198238716,-150.0,0.00022999,2]
[311536127,1705198238725,-150.0,0.00022999,2]
[311536129,1705198238734,-150.0,0.00022999,2]
[311536131,1705198238744,-150.0,0.00022999,2]
[311536134,1705198238754,-150.0,0.00022999,2]
[311536136,1705198238765,-150.0,0.00022999,2]
[311536138,1705198238775,-150.0,0.00022999,2]
[311536139,1705198238785,-150.0,0.00022999,2]
[311536141,1705198238794,-150.0,0.00022999,2]
[311536143,1705198238803,-150.0,0.00022999,2]
[311536145,1705198238812,-150.0,0.00022999,2]
[311536147,1705198238821,-363830.02686194,0.00023,2]
[311536149,1705198238831,-1008.93307353,0.00023,2]
[311536151,1705198238840,-724.5,0.00023,2]
[311536153,1705198238850,-2124980.55681265,0.00023,2]
[311536367,1705198240727,-160.06855197,0.000229,2]
[311536371,1705198240737,-575.36753897,0.00023,2]
[311536453,1705198241578,-816.22100029,0.00023,2]
[311536457,1705198241602,-991.77166717,0.00023,2]
[311536466,1705198241680,-639.14654176,0.00023,2]
[311536633,1705198243152,-278.02097649,0.00022999,2]
[311536646,1705198243210,-3015.72805469,0.00022999,2]
[311536649,1705198243219,-4755.67194531,0.00023,2]
[311536652,1705198243231,-9178.7606322,0.00023,2]
[311536668,1705198243375,-5805.64466566,0.00023,2]
[311536669,1705198243386,-3610.22182747,0.00023,2]
[311536670,1705198243431,-1022.65060933,0.00023,2]
[311536671,1705198243443,-1576.6629068,0.00023,2]
[311536677,1705198243489,-6842.661,0.00023,2]
[311536679,1705198243501,-543.33974753,0.00023,2]
[311536681,1705198243513,-13247.12897063,0.00023,2]
[311536683,1705198243524,-972.4045936,0.00023,2]
[311536687,1705198243548,-739.4398862,0.00023,2]
[311536846,1705198246230,-2397.35460174,0.00023,2]
[311536847,1705198246289,-265.84634938,0.00023,2]
[311536848,1705198246462,-256.9774382,0.00023,2]
[311536849,1705198246474,-15562.0634747,0.00023,2]
[311536850,1705198246579,-398842.29023791,0.00023,2]
[311536856,1705198256747,1008.93307353,0.00022089,2]
[311536857,1705198261952,620.82193079,0.00022089,3]
[311536858,1705198386779,1000.0,0.00022089,3]
[311536859,1705198410572,157.40114,0.00022089,3]
[311536860,1705198411142,157.40114,0.00022089,3]
[311536861,1705198411821,157.40114,0.00022089,3]
[311536862,1705198412519,157.40114,0.00022089,3]
[311536863,1705198413195,157.40114,0.00022089,3]
[311536864,1705198413894,157.40114,0.00022089,3]
[311536865,1705198417151,23900.0,0.00022026,2]
[311536866,1705198425867,200.0,0.00022026,2]
[311536867,1705198468599,295.51,0.00021958,2]
[311536869,1705198501397,823.7852519,0.00022089,3]
[311536870,1705198560802,1895.89,0.00021943,2]
[311536871,1705198581425,250.0,0.00021905,2]
[311536872,1705198590799,1200.58,0.0002208,2]
[311536873,1705198591590,694.60185794,0.00022089,3]
[311536875,1705198611659,672.06,0.00021912,2]
[311536876,1705198661795,200.0,0.00021915,2]
[311536877,1705198667729,201.74602698,0.00022,2]
[311536878,1705198681541,1795.71304559,0.00022089,3]
[311536880,1705198697921,186.51,0.000219,2]
[311536881,1705198741436,245.88766308,0.00022089,3]
[311536882,1705198757373,362.5,0.00019982,2]
[311536883,1705198783953,250.0,0.00022,2]
[311536884,1705198789002,358.52,0.00021895,2]
[311536885,1705198828591,156.01,0.00022042,2]
[311536886,1705198865606,150.0,0.00021934,2]
[311536887,1705198870248,2817.83,0.00021924,2]
[311536888,1705198873327,23900.0,0.00021924,2]
[311536889,1705198888392,1042.91,0.00021918,2]
[311536890,1705198893580,2384.64,0.00021919,2]
[311536891,1705198897243,152.62018397,0.00022,2]
[311536892,1705198921398,542.25205932,0.00022089,3]
[311536893,1705198932057,409.76,0.00021932,2]
[311536895,1705198991844,2000.0,0.0002189,2]
[311536896,1705199054974,250.0,0.00021864,2]
[311536897,1705199071009,462.35,0.00021853,2]
[311536899,1705199103221,410.67,0.00021828,2]
[311536900,1705199106670,1000.0,0.00022089,3]
[311536901,1705199162329,544.72430329,0.00022089,3]
[311536903,1705199201182,498.09,0.00021895,2]
[311536904,1705199248971,397.52,0.00019994,2]
[311536905,1705199290432,158.29,0.00022057,2]
[311536906,1705199294691,289.31721187,0.00022,2]
[311536907,1705199310358,363.08,0.00021877,2]
[311536908,1705199312230,150.0,0.00021877,2]
[311536909,1705199330381,23900.0,0.00021874,2]
[311536910,1705199341608,305.40980218,0.00022089,3]
[311536911,1705199343807,207.0,0.00021575,2]
[311536912,1705199357990,150.0,0.00030136,120]
[311536913,1705199358282,150.0,0.00030136,120]
[311536914,1705199358557,150.0,0.00030136,120]
[311536915,1705199358824,150.0,0.00030136,120]
[311536916,1705199359090,161.93895909,0.00030136,120]
[311536917,1705199396515,373.97,0.00021892,2]
[311536918,1705199427663,152.48,0.00021821,2]
[311536939,1705199431404,-214.80033583,0.00022132,2]
[311536940,1705199431413,-524.82072606,0.00022132,2]
[311536941,1705199431423,-1000.0,0.00022132,2]
[311536942,1705199431431,-165.43,0.00022154,2]
[311536943,1705199431442,-163.36645699,0.00022174,2]
[311536945,1705199431451,-397.52,0.00022258,2]
[311536946,1705199431681,-2120.60404109,0.00022258,2]
[311536947,1705199431691,-251.40755308,0.00022274,2]
[311536948,1705199431701,-158.29,0.0002244,2]
[311536949,1705199431711,-1073.78209653,0.00022474,2]
[311536950,1705199431720,-163.36645697,0.00022537,2]
[311536951,1705199431729,-914.0,0.00022541,2]
[311536952,1705199431739,-150.0,0.00022545,2]
[311536953,1705199431748,-423.14,0.00022546,2]
[311536954,1705199431758,-3254.46261398,0.00022548,2]
[311536955,1705199431769,-853.71847551,0.00022548,2]
[311536956,1705199431781,-284.54891051,0.00022548,2]
[311536957,1705199431790,-568.04322147,0.00022548,2]
[311536958,1705199431821,-2358.05363154,0.00022548,2]
[311536959,1705199431832,-455.94522447,0.00022548,2]
[311536961,1705199431852,-851.29792252,0.00022548,2]
[311536962,1705199431861,-84.0136655,0.00022625,2]
[311536965,1705199431872,-650.3663345,0.00022625,2]
[311536967,1705199431881,-94.99192799,0.0002279,2]
[311536969,1705199431892,-345.85363924,0.0002279,2]
[311536972,1705199431915,-29285.03949755,0.0002279,2]
[311536974,1705199431924,-18301.68977309,0.000228,2]
[311536977,1705199431943,-410.69107254,0.000228,2]
[311536980,1705199431953,-16315.53869272,0.000228,2]
[311536982,1705199431975,-333.09646948,0.000228,2]
[311536983,1705199431986,-999.87426,0.000228,2]
[311536984,1705199431998,-301.52504693,0.000228,2]
[311536985,1705199432009,-8841.66638524,0.000228,2]
[311536986,1705199432018,-158.29,0.00022824,2]
[311536987,1705199432027,-402.58348645,0.00022856,3]
[311536988,1705199432036,-363.08,0.00022856,2]
[311536989,1705199432046,-391.94838786,0.00022897,2]
[311536990,1705199432055,-1325.60312947,0.00022898,2]
[311536991,1705199432066,-300.96616691,0.00022898,2]
[311536992,1705199432078,-578.53223834,0.00022898,2]
[311536993,1705199432119,337.02441995,0.00022089,3]
[311536997,1705199437345,-2722.40846528,0.00022898,2]
[311536998,1705199437356,-822.35189216,0.00022899,2]
[311536999,1705199437365,-220.72425779,0.00022899,2]
[311537000,1705199437375,-250.0,0.000229,2]
[311537001,1705199437385,-337.44453,0.000229,2]
[311537002,1705199437410,-370.9210067,0.000229,2]
[311537003,1705199437425,-2027.33882137,0.000229,2]
[311537004,1705199437529,-25906.480366,0.000229,2]
[311537005,1705199437541,-698.98004566,0.000229,2]
[311537006,1705199437590,-2665.95065452,0.000229,2]
[311537007,1705199437602,-417.121379,0.000229,2]
[311537008,1705199437654,-2544.67068476,0.000229,2]
[311537009,1705199437666,-1840.01178555,0.000229,2]
[311537010,1705199437678,-1935.14523817,0.000229,2]
[311537011,1705199437713,-1023.9437999,0.000229,2]
[311537012,1705199437725,-616.01249581,0.000229,2]
[311537013,1705199437773,-429.73880918,0.000229,2]
[311537014,1705199437832,-281.55,0.000229,2]
[311537015,1705199437844,-21199.65377547,0.000229,2]
[311537016,1705199437853,-2058.84734033,0.000229,2]
[311537017,1705199437863,-195.50119104,0.000229,4]
[311537018,1705199437872,-230.13407596,0.000229,2]
[311537019,1705199437883,-163.36645697,0.000229,2]
[311537021,1705199437892,-155.0,0.000229,2]
[311537023,1705199437902,-893.78271695,0.00022978,3]
[311537024,1705199437911,-376.63303155,0.00022978,2]
[311537025,1705199437920,-41627.0,0.00022986,2]
[311537026,1705199437929,-768.76408944,0.00022996,2]
[311537027,1705199437939,-345.63771483,0.00022997,2]
[311537028,1705199437949,-1673.83766631,0.00022997,2]
[311537029,1705199437959,-155.37660646,0.00022997,2]
[311537030,1705199437968,-6481.75817514,0.00022997,2]
[311537031,1705199437978,-121839.77857884,0.00022997,2]
[311537032,1705199437988,-1051.95920911,0.00022997,2]
[311537033,1705199438004,-10075.90945184,0.00022997,2]
[311537035,1705199438013,-204.68163023,0.00022997,2]
[311537037,1705199438022,-656.94206244,0.00022998,2]
[311537039,1705199438032,-155.0,0.00022998,2]
[311537041,1705199438041,-163.3901975,0.00022998,2]
[311537043,1705199438051,-12289.26387543,0.00022998,2]
[311537045,1705199438060,-161.51806006,0.00022998,2]
[311537047,1705199438070,-857.33669562,0.00022999,2]
[311537049,1705199438079,-846.0,0.00022999,2]
[311537051,1705199438088,-2893.89901807,0.00022999,2]
[311537053,1705199438098,-4287.80550834,0.00022999,2]
[311537055,1705199438108,-5300.23806964,0.00022999,2]
[311537057,1705199438118,-505265.21634996,0.00022999,2]
[311537059,1705199438127,-3293.74903118,0.00022999,2]
[311537061,1705199438136,-1000.0,0.00022999,2]
[311537063,1705199438146,-1000.0,0.00022999,2]
[311537065,1705199438155,-150.0,0.00022999,2]
[311537067,1705199438165,-150.0,0.00022999,2]
[311537068,1705199438175,-150.0,0.00022999,2]
[311537069,1705199438186,-150.0,0.00022999,2]
[311537070,1705199438198,-150.0,0.00022999,2]
[311537071,1705199438207,-150.0,0.00022999,2]
[311537072,1705199438219,-150.0,0.00022999,2]
[311537073,1705199438229,-150.0,0.00022999,2]
[311537074,1705199438239,-150.0,0.00022999,2]
[311537075,1705199438248,-150.0,0.00022999,2]
[311537076,1705199438258,-464356.33194632,0.00023,2]
[311537077,1705199438267,-2451613.98192456,0.00023,2]
[311537078,1705199438293,-771.85119766,0.00023,2]
[311537079,1705199438307,-8895.65150137,0.00023,2]
[311537139,1705199440593,-125771.91278991,0.00023,2]
[311537140,1705199440711,-3865.90604929,0.00023,2]
[311537141,1705199440723,-289.00022319,0.00023,2]
[311537144,1705199442441,-1180.68546802,0.00022999,2]
[311537145,1705199442452,-113.10620103,0.00023,2]
[311537146,1705199442611,-4632.05045913,0.00023,2]
[311537147,1705199442623,-1150.81980858,0.00023,2]
[311537148,1705199442673,-4550.14600257,0.00023,2]
[311537149,1705199442734,-101101.92715807,0.00023,2]
[311537150,1705199442746,-2847.20335255,0.00023,2]
[311537151,1705199442758,-6803.76362928,0.00023,2]
[311537154,1705199445478,-550.66084252,0.00023,2]
[311537155,1705199445491,-210.33915748,0.00023,2]
[311537156,1705199445500,-682.36697906,0.00023,2]
[311537157,1705199445537,-8394.4012584,0.00023,2]
[311537192,1705199446254,-183.61770649,0.00022999,2]
[311537194,1705199446263,-296.60367204,0.00023,2]
[311537196,1705199446276,-390.61508953,0.00023,2]
[311537199,1705199446287,-3172.46288547,0.00023,2]
[311537201,1705199446299,-759.08272986,0.00023,2]
[311537203,1705199446311,-612.16638275,0.00023,2]
[311537205,1705199446322,-318.62652592,0.00023,2]
[311537647,1705199457432,151.40114,0.00022089,3]
[311537648,1705199458611,151.40114,0.00022089,3]
[311537649,1705199459508,151.40114,0.00022089,3]
[311537650,1705199460315,151.40114,0.00022089,3]
[311537651,1705199461211,151.40114,0.00022089,3]
[311537652,1705199462048,151.40114,0.00022089,3]
[311537653,1705199462808,151.40114,0.00022089,3]
[311537654,1705199463652,151.40114,0.00022089,3]
[311537655,1705199463684,205.0,0.00021575,2]
[311537656,1705199464415,151.40114,0.00022089,3]
[311537657,1705199465181,151.40114,0.00022089,3]
[311537658,1705199465942,151.40114,0.00022089,3]
[311537659,1705199466692,151.40114,0.00022089,3]
[311537660,1705199467810,151.40114,0.00022089,3]
[311537661,1705199468256,151.40114,0.00022089,3]
[311537662,1705199469121,151.40114,0.00022089,3]
[311537663,1705199469931,151.40114,0.00022089,3]
[311537664,1705199470636,1184.5412422,0.00021953,2]
[311537665,1705199470704,151.40114,0.00022089,3]
[311537666,1705199471445,151.40114,0.00022089,3]
[311537667,1705199472186,151.40114,0.00022089,3]
[311537668,1705199472967,151.40114,0.00022089,3]
[311537669,1705199473746,151.40114,0.00022089,3]
[311537670,1705199475062,151.40114,0.00022089,3]
[311537671,1705199475771,151.40114,0.00022089,3]
[311537672,1705199476486,151.40114,0.00022089,3]
[311537673,1705199477278,151.40114,0.00022089,3]
[311537674,1705199478147,151.40114,0.00022089,3]
[311537675,1705199478760,151.40114,0.00022089,3]
[311537676,1705199479524,151.40114,0.00022089,3]
[311537677,1705199480274,151.40114,0.00022089,3]
[311537678,1705199480984,151.40114,0.00022089,3]
[311537679,1705199481727,151.40114,0.00022089,3]
[311537680,1705199482405,151.40114,0.00022089,3]
[311537681,1705199483120,151.40114,0.00022089,3]
[311537682,1705199483809,151.40114,0.00022089,3]
[311537683,1705199484567,151.40114,0.00022089,3]
[311537684,1705199485274,151.40114,0.00022089,3]
[311537685,1705199486001,151.40114,0.00022089,3]
[311537686,1705199486740,151.40114,0.00022089,3]
[311537687,1705199487418,151.40114,0.00022089,3]
[311537688,1705199488556,151.40114,0.00022089,3]
[311537689,1705199488905,151.40114,0.00022089,3]
[311537690,1705199489648,151.40114,0.00022089,3]
[311537691,1705199490678,151.40114,0.00022089,3]
[311537692,1705199490981,151.40114,0.00022089,3]
[311537693,1705199491654,151.40114,0.00022089,3]
[311537694,1705199492346,151.40114,0.00022089,3]
[311537695,1705199492984,151.40114,0.00022089,3]
[311537696,1705199493652,151.40114,0.00022089,3]
[311537697,1705199494361,151.40114,0.00022089,3]
[311537698,1705199494994,151.40114,0.00022089,3]
[311537699,1705199495664,151.40114,0.00022089,3]
[311537700,1705199496332,151.40114,0.00022089,3]
[311537701,1705199497008,151.40114,0.00022089,3]
[311537702,1705199497725,151.40114,0.00022089,3]
[311537703,1705199498455,151.40114,0.00022089,3]
[311537704,1705199499193,151.40114,0.00022089,3]
[311537705,1705199499900,151.40114,0.00022089,3]
[311537706,1705199500654,151.40114,0.00022089,3]
[311537707,1705199504437,1000.0,0.00022088,2]
[311537708,1705199507121,151.40114,0.00022089,3]
[311537709,1705199507794,151.40114,0.00022089,3]
[311537710,1705199508442,151.40114,0.00022089,3]
[311537711,1705199509267,151.40114,0.00022089,3]
[311537712,1705199509903,151.40114,0.00022089,3]
[311537713,1705199510841,151.40114,0.00022089,3]
[311537714,1705199511187,151.40114,0.00022089,3]
[311537715,1705199511891,151.40114,0.00022089,3]
[311537716,1705199512652,151.40114,0.00022089,3]
[311537717,1705199513479,151.40114,0.00022089,3]
[311537718,1705199514053,151.40114,0.00022089,3]
[311537719,1705199514744,151.40114,0.00022089,3]
[311537720,1705199515436,151.40114,0.00022089,3]
[311537721,1705199516298,151.40114,0.00022089,3]
[311537722,1705199523996,151.40114,0.00022089,3]
[311537723,1705199524669,151.40114,0.00022089,3]
[311537724,1705199525283,151.40114,0.00022089,3]
[311537725,1705199525999,151.40114,0.00022089,3]
[311537726,1705199526720,151.40114,0.00022089,3]
[311537727,1705199533802,151.40114,0.00022089,3]
[311537728,1705199551904,155.27269045,0.00022089,3]
[311537729,1705199582364,1154.97114563,0.00022089,3]
[311537730,1705199671604,290.38485624,0.00022089,3]
[311537731,1705199778817,150.24,0.0002201,2]
[311537732,1705199779373,150.24,0.00022071,2]
[311537733,1705199808463,343.14,0.00021668,2]
[311537734,1705199848493,186.98,0.00021663,2]
[311537735,1705199852017,1567.50614722,0.00022089,3]
[311537736,1705199923343,562.82,0.00021647,2]
[311537737,1705199923553,562.82,0.00021761,2]
[311537738,1705199923774,562.82,0.00021875,2]
[311537739,1705199924000,562.82,0.00021989,2]
[311537741,1705199986838,250.0,0.00022,2]
[311537742,1705200006310,766.13795636,0.00022099,2]
[311537743,1705200013747,244.75352941,0.00022099,2]
[311537744,1705200026520,1881.58,0.00021617,2]
[311537745,1705200026907,369.88,0.00021617,2]
[311537746,1705200031453,271.5879739,0.00022089,3]
[311537747,1705200121422,556.08864745,0.00022089,3]
[311537749,1705200156806,1000.0,0.00022089,3]
[311537751,1705200279743,320.26,0.00021627,2]
[311537752,1705200281344,161.5,0.00021844,2]
[311537753,1705200310592,150.24,0.00021842,2]
[311537754,1705200310785,150.24,0.00021908,2]
[311537755,1705200311196,150.24,0.00021975,2]
[311537756,1705200311409,150.24,0.00022042,2]
[311537757,1705200361606,459.19613372,0.00022089,3]
[311537758,1705200366899,186.98,0.00021603,2]
[311537759,1705200451604,540.47429784,0.00022089,3]
[311537760,1705200527397,165.89372487,0.00022048,2]
[311537761,1705200553825,704.09,0.00021569,2]
[311537762,1705200570362,357.77,0.0001966,2]
[311537763,1705200570586,357.77,0.00021923,2]
[311537764,1705200577100,1000.0,0.00022089,3]
[311537765,1705200601652,165.68903034,0.00022089,3]
[311537768,1705200631535,-780.97964211,0.00022102,2]
[311537769,1705200631547,-219.02035789,0.00022102,2]
[311537770,1705200631556,-562.82,0.00022103,2]
[311537771,1705200631565,-150.24,0.00022109,2]
[311537772,1705200631575,-990.78340157,0.00022146,2]
[311537773,1705200631647,-482.20653933,0.00022146,2]
[311537774,1705200631659,-450.037073,0.00022146,2]
[311537775,1705200631703,-345.02615116,0.00022146,2]
[311537776,1705200631714,-178.78,0.00022148,2]
[311537777,1705200631724,-165.89372482,0.0002217,2]
[311537778,1705200631735,-150.24,0.00022176,2]
[311537779,1705200631745,-150.0,0.00022192,2]
[311537780,1705200631755,-1184.54124221,0.00022192,2]
[311537781,1705200631765,-562.82,0.00022217,2]
[311537782,1705200631775,-499.99,0.00022217,2]
[311537783,1705200631784,-150.24,0.00022243,2]
[311537784,1705200631793,-453.5,0.00022252,2]
[311537785,1705200631802,-150.99,0.00022252,2]
[311537786,1705200631811,-458.06550699,0.00022274,2]
[311537787,1705200631821,-165.89372482,0.00022291,2]
[311537788,1705200631830,-150.24,0.0002231,2]
[311537789,1705200631839,-562.82,0.00022331,2]
[311537790,1705200631849,-150.0,0.00022376,2]
[311537791,1705200631858,-150.0,0.00022376,2]
[311537792,1705200631867,-150.24,0.00022377,2]
[311537793,1705200631876,-165.89372482,0.00022413,2]
[311537794,1705200631885,-206.0,0.00022417,2]
[311537795,1705200631894,-150.24,0.00022444,2]
[311537796,1705200631903,-562.82,0.00022445,2]
[311537797,1705200631912,-1184.54124221,0.00022472,2]
[311537798,1705200631921,-150.24,0.00022511,2]
[311537799,1705200631931,-165.89372482,0.00022535,2]
[311537800,1705200631940,-562.82,0.00022559,2]
[311537802,1705200631949,-150.24,0.00022578,2]
[311537804,1705200631958,-320.26,0.00022606,2]
[311537806,1705200631969,-150.24,0.00022645,2]
[311537808,1705200631979,-165.89372482,0.00022657,2]
[311537810,1705200631988,-150.0,0.00022657,2]
[311537812,1705200631997,-562.82,0.00022673,2]
[311537814,1705200632006,-171.02,0.00022698,2]
[311537816,1705200632015,-100.74960359,0.00022698,2]
[311537819,1705200632032,-778.35739641,0.00022698,2]
[311537820,1705200632041,-288.67660359,0.00022698,2]
[311537821,1705200632052,-885.4525,0.00022698,2]
[311537822,1705200632064,-938.959998,0.00022698,2]
[311537823,1705200632094,-4883.16309841,0.00022698,2]
[311537824,1705200632103,-389.73877156,0.000227,2]
[311537825,1705200632115,-599.51586882,0.000227,2]
[311537826,1705200632125,-581.68865962,0.000227,2]
[311537827,1705200632134,-603.0894,0.000227,2]
[311537828,1705200632144,-521.1317471,0.000227,2]
[311537829,1705200632155,-442.0582529,0.000227,2]
[311537830,1705200632164,-795.79403614,0.000227,2]
[311537831,1705200632180,-144.41596386,0.000227,2]
[311537832,1705200632189,-940.21,0.000227,2]
[311537833,1705200632198,-421.83645223,0.000227,2]
[311537834,1705200632210,-363.36373079,0.000227,2]
[311537835,1705200632455,-155.00981698,0.000227,2]
[311537836,1705200632465,-738.70688514,0.000227,2]
[311537837,1705200632477,-201.50311486,0.000227,2]
[311537838,1705200632488,-940.21,0.000227,2]
[311537839,1705200632498,-401.27,0.000227,2]
[311537840,1705200632507,-150.24,0.00022712,2]
[311537841,1705200632518,-165.89372482,0.00022778,2]